[Event "NJSK 2022 Meisjes C"]
[Site "Almelo, Netherlands"]
[Date "2022.05.01"]
[Round "1.4"]
[White "Van Apeldoorn, Vera"]
[Black "Tunyluhulima, Serana"]
[Result "1-0"]
[TimeControl "90min/40moves + 30min + 30sec/move"]
[WhiteElo "1022"]
[BlackElo "1617"]

1. d4 {[%clk 01:30:58]} {[%emt 00:00:01]} d5 {[%clk 01:30:44]} {[%emt
00:00:16]} 2. c4 {[%clk 01:31:22]} {[%emt 00:00:06]} Nf6 {[%clk 01:30:27]}
{[%emt 00:00:48]} 3. cxd5 {[%clk 01:30:59]} {[%emt 00:00:53]} Qxd5 {[%clk
01:29:59]} {[%emt 00:00:57]} 4. Nc3 {[%clk 01:30:35]} {[%emt 00:00:54]} Qd8
{[%clk 01:28:29]} {[%emt 00:02:00]} 5. Nf3 {[%clk 01:30:41]} {[%emt 00:00:24]}
e6 {[%clk 01:28:34]} {[%emt 00:00:25]} 6. Bg5 {[%clk 01:30:03]} {[%emt
00:01:08]} Bb4 {[%clk 01:28:02]} {[%emt 00:01:03]} 7. e3 {[%clk 01:30:06]}
{[%emt 00:00:27]} a6 {[%clk 01:27:32]} {[%emt 00:01:00]} 8. Bd3 {[%clk
01:29:39]} {[%emt 00:00:56]} Nc6 {[%clk 01:26:48]} {[%emt 00:01:15]} 9. O-O
{[%clk 01:29:24]} {[%emt 00:00:44]} Bxc3 {[%clk 01:27:06]} {[%emt 00:00:12]} 10.
bxc3 {[%clk 01:29:35]} {[%emt 00:00:19]} h6 {[%clk 01:26:24]} {[%emt 00:01:13]}
11. Bh4 {[%clk 01:28:38]} {[%emt 00:01:27]} O-O {[%clk 01:25:48]} {[%emt
00:01:06]} 12. Ne5 {[%clk 01:28:00]} {[%emt 00:01:08]} g5 {[%clk 01:19:37]}
{[%emt 00:06:41]} 13. Nxc6 {[%clk 01:26:26]} {[%emt 00:02:04]} bxc6 {[%clk
01:19:27]} {[%emt 00:00:40]} 14. Bg3 {[%clk 01:26:43]} {[%emt 00:00:13]} Bb7
{[%clk 01:16:49]} {[%emt 00:03:09]} 15. Rb1 {[%clk 01:25:52]} {[%emt 00:01:20]}
Rb8 {[%clk 01:16:55]} {[%emt 00:00:23]} 16. Be5 {[%clk 01:25:21]} {[%emt
00:01:02]} Nd7 {[%clk 01:12:19]} {[%emt 00:05:02]} 17. Bg3 {[%clk 01:25:17]}
{[%emt 00:00:36]} Nf6 {[%clk 01:12:17]} {[%emt 00:00:33]} 18. Bc2 {[%clk
01:25:01]} {[%emt 00:00:47]} Qd5 {[%clk 01:11:41]} {[%emt 00:01:05]} 19. Qd3
{[%clk 01:23:07]} {[%emt 00:02:24]} c5 {[%clk 01:10:21]} {[%emt 00:01:51]} 20.
f3 {[%clk 01:23:20]} {[%emt 00:00:17]} c4 {[%clk 01:08:59]} {[%emt 00:01:52]}
21. Qe2 {[%clk 01:21:51]} {[%emt 00:01:58]} Qc6 {[%clk 01:06:03]} {[%emt
00:03:25]} 22. Rb4 {[%clk 01:20:24]} {[%emt 00:01:59]} a5 {[%clk 01:02:10]}
{[%emt 00:04:22]} 23. Rxc4 {[%clk 01:19:16]} {[%emt 00:01:38]} Ba6 {[%clk
01:01:22]} {[%emt 00:01:18]} 24. Rxc6 {[%clk 01:19:35]} {[%emt 00:00:11]} Bxe2
{[%clk 01:01:23]} {[%emt 00:00:29]} 25. Re1 {[%clk 01:19:45]} {[%emt 00:00:20]}
Bb5 {[%clk 01:00:26]} {[%emt 00:01:28]} 26. Rxc7 {[%clk 01:19:43]} {[%emt
00:00:32]} Rfc8 {[%clk 00:58:54]} {[%emt 00:02:02]} 27. Ra7 {[%clk 01:18:54]}
{[%emt 00:01:19]} Ra8 {[%clk 00:58:35]} {[%emt 00:00:48]} 28. Rxa8 {[%clk
01:18:46]} {[%emt 00:00:39]} Rxa8 {[%clk 00:59:02]} {[%emt 00:00:03]} 29. Rb1
{[%clk 01:18:51]} {[%emt 00:00:24]} Bc4 {[%clk 00:59:00]} {[%emt 00:00:32]} 30.
Bb3 {[%clk 01:18:00]} {[%emt 00:01:21]} Bd3 {[%clk 00:55:33]} {[%emt 00:03:56]}
31. Rc1 {[%clk 01:17:06]} {[%emt 00:01:26]} a4 {[%clk 00:55:06]} {[%emt
00:00:56]} 32. Bc2 {[%clk 01:17:08]} {[%emt 00:00:29]} Bc4 {[%clk 00:55:04]}
{[%emt 00:00:32]} 33. a3 {[%clk 01:17:15]} {[%emt 00:00:24]} Nd5 {[%clk
00:55:01]} {[%emt 00:00:31]} 34. Be4 {[%clk 01:16:37]} {[%emt 00:01:08]} Ra6
{[%clk 00:52:01]} {[%emt 00:03:30]} 35. Bxd5 {[%emt 00:01:08]} exd5 {[%clk
00:51:56]} {[%emt 00:00:16]} 36. e4 {[%clk 01:15:55]} {[%emt 00:00:53]} dxe4
{[%clk 00:52:04]} {[%emt 00:00:22]} 37. fxe4 {[%clk 01:16:19]} {[%emt
00:00:06]} Rf6 {[%clk 00:51:17]} {[%emt 00:01:16]} 38. h3 {[%clk 01:16:09]}
{[%emt 00:00:41]} Rb6 {[%clk 00:51:08]} {[%emt 00:00:39]} 39. d5 {[%clk
01:16:03]} {[%emt 00:00:37]} Rb3 {[%clk 00:50:59]} {[%emt 00:00:38]} 40. Bd6
{[%clk 01:16:08]} {[%emt 00:00:26]} f6 {[%clk 00:49:29]} {[%emt 00:01:59]} 41.
Bb4 {[%clk 01:16:15]} {[%emt 00:00:23]} Bd3 {[%clk 00:49:08]} {[%emt 00:00:50]}
42. d6 {[%clk 01:16:10]} {[%emt 00:00:36]} Bb5 {[%clk 00:47:20]} {[%emt
00:02:18]} 43. Rd1 {[%clk 01:16:33]} {[%emt 00:00:09]} Rb2 {[%clk 00:47:10]}
{[%emt 00:00:39]} 44. d7 {[%clk 01:16:33]} {[%emt 00:00:30]} Bxd7 {[%clk
00:47:29]} {[%emt 00:00:10]} 45. Rxd7 {[%clk 01:17:00]} {[%emt 00:00:04]} h5
{[%clk 00:47:03]} {[%emt 00:00:55]} 46. c4 {[%clk 01:17:15]} {[%emt 00:00:15]}
g4 {[%clk 00:47:04]} {[%emt 00:00:30]} 47. hxg4 {[%clk 01:17:25]} {[%emt
00:00:19]} hxg4 {[%clk 00:47:25]} {[%emt 00:00:09]} 48. Kh2 {[%clk 01:17:36]}
{[%emt 00:00:19]} Re2 {[%clk 00:45:50]} {[%emt 00:02:05]} 49. Re7 {[%clk
01:17:26]} {[%emt 00:00:41]} Re3 {[%clk 00:43:44]} {[%emt 00:02:33]} 50. c5
{[%clk 01:17:18]} {[%emt 00:00:40]} f5 {[%clk 00:43:36]} {[%emt 00:00:39]} 51.
c6 {[%clk 01:17:21]} {[%emt 00:00:27]} Re2 {[%clk 00:41:30]} {[%emt 00:02:35]}
52. c7 {[%clk 01:17:29]} {[%emt 00:00:23]} Rc2 {[%clk 00:41:45]} {[%emt
00:00:15]} 53. Re8+ {[%clk 01:17:53]} {[%emt 00:00:06]} Kf7 {[%clk 00:42:10]}
{[%emt 00:00:04]} 54. c8=Q {[%clk 01:17:55]} {[%emt 00:00:29]} Rxc8 {[%clk
00:42:03]} {[%emt 00:00:36]} 55. Rxc8 {[%clk 01:18:18]} {[%emt 00:00:07]} fxe4
{[%clk 00:42:25]} {[%emt 00:00:08]} 56. Rc5 {[%clk 01:18:44]} {[%emt 00:00:04]}
Kf6 {[%clk 00:42:10]} {[%emt 00:00:45]} 57. Kg3 {[%clk 01:19:00]} {[%emt
00:00:13]} e3 {[%clk 00:42:25]} {[%emt 00:00:15]} 58. Kxg4 {[%clk 01:19:04]}
{[%emt 00:00:27]} e2 {[%clk 00:42:30]} {[%emt 00:00:25]} 59. Kf3 {[%clk
01:18:54]} {[%emt 00:18:30]} Ke6 {[%clk 00:42:29]} {[%emt 00:00:31]} 60. Kxe2
{[%clk 01:19:14]} {[%emt 00:00:10]} Kd6 {[%clk 00:42:45]} {[%emt 00:00:15]} 61.
Rh5+ {[%clk 01:19:25]} {[%emt 00:00:18]} Ke6 {[%clk 00:42:57]} {[%emt
00:00:18]} 62. Be1 {[%clk 01:19:31]} {[%emt 00:00:24]} Kf6 {[%clk 00:43:09]}
{[%emt 00:00:18]} 63. Kf3 {[%clk 01:19:44]} {[%emt 00:00:16]} Ke6 {[%clk
00:43:27]} {[%emt 00:00:14]} 64. Ke4 {[%clk 01:20:04]} {[%emt 00:00:10]} Kd6
{[%clk 00:43:27]} {[%emt 00:00:30]} 65. Rg5 {[%clk 01:20:18]} {[%emt 00:00:15]}
Kc6 {[%clk 00:43:42]} {[%emt 00:00:15]} 66. Kd4 {[%clk 01:20:37]} {[%emt
00:00:12]} Kd6 {[%clk 00:43:51]} {[%emt 00:00:21]} 67. Rg6+ {[%clk 01:21:02]}
{[%emt 00:00:05]} Ke7 {[%clk 00:44:01]} {[%emt 00:00:19]} 68. Kd5 {[%clk
01:21:23]} {[%emt 00:00:10]} Kf7 {[%clk 00:44:19]} {[%emt 00:00:11]} 69. Ra6
{[%clk 01:21:44]} {[%emt 00:00:09]} Kg7 {[%clk 00:44:33]} {[%emt 00:00:16]} 70.
Ke5 {[%clk 01:22:08]} {[%emt 00:00:07]} Kh7 {[%clk 00:44:41]} {[%emt 00:00:21]}
71. Kf5 {[%clk 01:22:34]} {[%emt 00:00:03]} Kg7 {[%clk 00:44:49]} {[%emt
00:00:23]} 72. Rb6 {[%clk 01:22:41]} {[%emt 00:00:23]} Kf7 {[%clk 00:44:19]}
{[%emt 00:01:01]} 73. Rb7+ {[%clk 01:23:07]} {[%emt 00:00:04]} Ke8 {[%clk
00:44:31]} {[%emt 00:00:17]} 74. Ke6 {[%clk 01:23:24]} {[%emt 00:00:12]} Kf8
{[%clk 00:44:42]} {[%emt 00:00:19]} 75. Rc7 {[%clk 01:23:39]} {[%emt 00:00:17]}
Kg8 {[%clk 00:44:57]} {[%emt 00:00:13]} 76. Kf6 {[%clk 01:23:57]} {[%emt
00:00:13]} Kh8 {[%clk 00:44:55]} {[%emt 00:00:31]} 77. Kg6 {[%clk 01:24:24]}
{[%emt 00:00:04]} Kg8 {[%clk 00:45:03]} {[%emt 00:00:22]} 78. Rc8# {[%clk
01:24:17]} {[%emt 00:00:05]} 1-0

[Event "NJSK 2022 Meisjes C"]
[Site "Almelo, Netherlands"]
[Date "2022.05.01"]
[Round "1.5"]
[White "Damen, Josephine"]
[Black "Yildirim, Azra"]
[Result "1-0"]
[TimeControl "90min/40moves + 30min + 30sec/move"]
[WhiteElo "1600"]
[BlackElo "985"]

1. e4 {[%clk 01:30:57]} {[%emt 00:00:03]} e5 {[%clk 01:30:43]} {[%emt
00:00:17]} 2. Nf3 {[%clk 01:31:21]} {[%emt 00:00:06]} Nc6 {[%clk 01:30:47]}
{[%emt 00:00:26]} 3. Bc4 {[%clk 01:31:42]} {[%emt 00:00:08]} Bc5 {[%clk
01:30:34]} {[%emt 00:00:44]} 4. c3 {[%clk 01:32:02]} {[%emt 00:00:10]} Nf6
{[%clk 01:29:52]} {[%emt 00:01:12]} 5. d4 {[%clk 01:32:21]} {[%emt 00:00:11]}
exd4 {[%clk 01:29:49]} {[%emt 00:00:33]} 6. cxd4 {[%clk 01:32:41]} {[%emt
00:00:09]} Bb4+ {[%clk 01:30:08]} {[%emt 00:00:12]} 7. Nc3 {[%clk 01:33:00]}
{[%emt 00:00:11]} Bxc3+ {[%clk 01:30:02]} {[%emt 00:00:37]} 8. bxc3 {[%clk
01:33:23]} {[%emt 00:00:06]} Nxe4 {[%clk 01:30:11]} {[%emt 00:00:21]} 9. Qd3
{[%clk 01:32:17]} {[%emt 00:01:34]} d5 {[%clk 01:29:47]} {[%emt 00:00:56]} 10.
O-O {[%clk 01:26:33]} {[%emt 00:06:15]} O-O {[%clk 01:28:56]} {[%emt 00:01:20]}
11. Bb3 {[%clk 01:23:47]} {[%emt 00:03:16]} g6 {[%clk 01:25:10]} {[%emt
00:04:16]} 12. Re1 {[%clk 01:15:35]} {[%emt 00:08:41]} Bf5 {[%clk 01:22:50]}
{[%emt 00:02:52]} 13. Qe3 {[%clk 01:07:32]} {[%emt 00:08:31]} Re8 {[%clk
01:19:27]} {[%emt 00:03:55]} 14. Ne5 {[%clk 00:57:48]} {[%emt 00:10:14]} Qd6
{[%clk 01:15:29]} {[%emt 00:04:28]} 15. f3 {[%clk 00:51:31]} {[%emt 00:06:46]}
b5 {[%clk 01:10:43]} {[%emt 00:05:16]} 16. fxe4 {[%clk 00:48:59]} {[%emt
00:03:02]} Bxe4 {[%clk 01:09:56]} {[%emt 00:01:17]} 17. Nxc6 {[%clk 00:43:57]}
{[%emt 00:05:32]} Qxc6 {[%clk 01:09:37]} {[%emt 00:00:49]} 18. Qg3 {[%clk
00:42:32]} {[%emt 00:01:55]} Qf6 {[%clk 01:08:02]} {[%emt 00:02:06]} 19. Rf1
{[%clk 00:40:16]} {[%emt 00:02:44]} Qb6 {[%clk 01:05:43]} {[%emt 00:02:50]} 20.
Qf2 {[%clk 00:37:24]} {[%emt 00:03:21]} f5 {[%clk 01:04:14]} {[%emt 00:02:00]}
21. Bh6 {[%clk 00:35:24]} {[%emt 00:02:30]} Re7 {[%clk 01:02:33]} {[%emt
00:02:11]} 22. g4 {[%clk 00:34:54]} {[%emt 00:01:00]} Rae8 {[%clk 01:01:02]}
{[%emt 00:02:02]} 23. gxf5 {[%clk 00:30:36]} {[%emt 00:04:48]} a5 {[%clk
00:58:27]} {[%emt 00:03:05]} 24. f6 {[%clk 00:28:49]} {[%emt 00:02:17]} Rf7
{[%clk 00:57:27]} {[%emt 00:19:19]} 25. Rae1 {[%clk 00:26:26]} {[%emt
00:02:52]} Qe6 {[%clk 00:57:05]} {[%emt 00:00:53]} 26. Qh4 {[%clk 00:24:13]}
{[%emt 00:02:43]} Qd7 {[%clk 00:54:27]} {[%emt 00:03:09]} 27. Qg5 {[%clk
00:19:39]} {[%emt 00:05:04]} c5 {[%clk 00:53:07]} {[%emt 00:01:50]} 28. Bxd5
{[%clk 00:18:49]} {[%emt 00:01:19]} Bxd5 {[%clk 00:50:47]} {[%emt 00:02:50]} 29.
Rxe8+ {[%clk 00:18:43]} {[%emt 00:00:36]} Qxe8 {[%clk 00:51:06]} {[%emt
00:00:12]} 30. Qxd5 {[%clk 00:19:06]} {[%emt 00:00:07]} cxd4 {[%clk 00:50:14]}
{[%emt 00:01:22]} 31. cxd4 {[%clk 00:18:24]} {[%emt 00:01:11]} Kh8 {[%clk
00:49:14]} {[%emt 00:01:31]} 32. Bg7+ {[%clk 00:17:58]} {[%emt 00:00:55]} Kg8
{[%clk 00:49:31]} {[%emt 00:00:13]} 33. Kf2 {[%clk 00:17:24]} {[%emt 00:01:04]}
h5 {[%clk 00:48:54]} {[%emt 00:01:08]} 34. Re1 {[%clk 00:17:04]} {[%emt
00:00:48]} Qb8 {[%clk 00:48:42]} {[%emt 00:00:44]} 35. Kg2 {[%clk 00:15:30]}
{[%emt 00:02:02]} Qc8 {[%clk 00:47:50]} {[%emt 00:01:24]} 36. Qe6 {[%clk
00:13:32]} {[%emt 00:02:23]} Qxe6 {[%clk 00:47:02]} {[%emt 00:01:22]} 37. Rxe6
{[%clk 00:13:56]} {[%emt 00:00:06]} Rxg7 {[%clk 00:47:20]} {[%emt 00:00:13]} 38.
fxg7 {[%clk 00:14:07]} {[%emt 00:00:19]} Kxg7 {[%clk 00:47:45]} {[%emt
00:00:05]} 39. Re5 {[%clk 00:14:31]} {[%emt 00:00:06]} a4 {[%clk 00:47:39]}
{[%emt 00:00:35]} 40. Rxb5 {[%clk 00:14:52]} {[%emt 00:00:09]} a3 {[%clk
00:47:35]} {[%emt 00:00:35]} 41. Ra5 {[%clk 00:15:17]} {[%emt 00:00:05]} Kf6
{[%clk 00:47:47]} {[%emt 00:00:19]} 42. Rxa3 {[%clk 00:15:40]} {[%emt
00:00:06]} Kf5 {[%clk 00:47:43]} {[%emt 00:00:33]} 43. Re3 {[%clk 00:15:59]}
{[%emt 00:00:11]} Kf4 {[%clk 00:47:58]} {[%emt 00:00:16]} 44. Re8 {[%clk
00:16:22]} {[%emt 00:00:06]} Kf5 {[%clk 00:48:19]} {[%emt 00:00:10]} 45. d5
{[%clk 00:16:46]} {[%emt 00:00:07]} Kf6 {[%clk 00:48:28]} {[%emt 00:00:20]} 46.
d6 {[%clk 00:17:09]} {[%emt 00:00:07]} h4 {[%clk 00:48:38]} {[%emt 00:00:20]}
47. d7 {[%clk 00:17:32]} {[%emt 00:00:07]} Kf7 {[%clk 00:48:53]} {[%emt
00:00:15]} 48. d8=Q {[%clk 00:17:51]} {[%emt 00:00:11]} g5 {[%clk 00:48:51]}
{[%emt 00:00:32]} 49. Qe7+ {[%clk 00:18:14]} {[%emt 00:00:06]} Kg6 {[%clk
00:48:54]} {[%emt 00:00:27]} 50. Qe6+ {[%clk 00:18:29]} {[%emt 00:00:14]} Kg7
{[%clk 00:49:09]} {[%emt 00:00:16]} 51. Rg8+ {[%clk 00:18:53]} {[%emt
00:00:07]} Kh7 {[%clk 00:49:11]} {[%emt 00:00:28]} 52. Qg6# {[%emt 00:00:32]}
1-0

[Event "NJSK 2022 Meisjes C"]
[Site "Almelo, Netherlands"]
[Date "2022.05.01"]
[Round "1.6"]
[White "De Bruijne, Marlies"]
[Black "Knobbe, Elise"]
[Result "0-1"]
[TimeControl "90min/40moves + 30min + 30sec/move"]
[WhiteElo "858"]
[BlackElo "1553"]

1. e4 {[%clk 01:30:58]} {[%emt 00:00:02]} c5 {[%clk 01:30:51]} {[%emt
00:00:09]} 2. Nf3 {[%clk 01:30:59]} {[%emt 00:00:29]} Nc6 {[%clk 01:31:10]}
{[%emt 00:00:12]} 3. Nc3 {[%clk 01:31:10]} {[%emt 00:00:19]} g6 {[%clk
01:31:26]} {[%emt 00:00:14]} 4. Bc4 {[%clk 01:31:05]} {[%emt 00:00:35]} Bg7
{[%clk 01:31:42]} {[%emt 00:00:13]} 5. O-O {[%clk 01:29:26]} {[%emt 00:02:10]}
e6 {[%clk 01:31:22]} {[%emt 00:00:51]} 6. d3 {[%clk 01:28:54]} {[%emt
00:01:02]} Nge7 {[%clk 01:31:01]} {[%emt 00:00:51]} 7. Be3 {[%clk 01:26:39]}
{[%emt 00:02:45]} d5 {[%clk 01:30:22]} {[%emt 00:01:09]} 8. exd5 {[%clk
01:25:38]} {[%emt 00:01:31]} exd5 {[%clk 01:30:43]} {[%emt 00:00:08]} 9. Bxc5
{[%clk 01:24:12]} {[%emt 00:01:56]} dxc4 {[%clk 01:30:34]} {[%emt 00:00:39]} 10.
Bxe7 {[%clk 01:23:55]} {[%emt 00:00:47]} Nxe7 {[%clk 01:28:47]} {[%emt
00:02:17]} 11. dxc4 {[%clk 01:23:49]} {[%emt 00:00:35]} O-O {[%clk 01:28:24]}
{[%emt 00:00:53]} 12. Re1 {[%clk 01:22:39]} {[%emt 00:01:40]} Be6 {[%clk
01:25:23]} {[%emt 00:03:31]} 13. Ng5 {[%clk 01:20:34]} {[%emt 00:02:35]} Nf5
{[%clk 01:13:59]} {[%emt 00:11:53]} 14. Nxe6 {[%clk 01:19:59]} {[%emt
00:01:07]} fxe6 {[%clk 01:14:17]} {[%emt 00:00:12]} 15. Rxe6 {[%clk 01:19:39]}
{[%emt 00:00:50]} Qc8 {[%clk 01:11:42]} {[%emt 00:03:03]} 16. Qd5 {[%clk
01:17:37]} {[%emt 00:02:34]} Kh8 {[%clk 01:11:40]} {[%emt 00:00:32]} 17. Rae1
{[%clk 01:17:06]} {[%emt 00:01:01]} Rd8 {[%clk 01:07:43]} {[%emt 00:04:26]} 18.
Qe4 {[%clk 01:15:17]} {[%emt 00:02:19]} Rf8 {[%clk 01:04:40]} {[%emt 00:03:33]}
19. g3 {[%clk 01:12:54]} {[%emt 00:02:53]} Nd4 {[%clk 01:02:42]} {[%emt
00:02:26]} 20. Nb5 {[%clk 01:04:38]} {[%emt 00:08:48]} Nxe6 {[%clk 00:59:31]}
{[%emt 00:03:41]} 21. Qxe6 {[%clk 01:04:40]} {[%emt 00:00:29]} Qxe6 {[%clk
00:59:41]} {[%emt 00:00:20]} 22. Rxe6 {[%clk 01:04:59]} {[%emt 00:00:10]} a6
{[%clk 00:57:48]} {[%emt 00:02:24]} 23. Nd6 {[%clk 01:04:25]} {[%emt 00:01:04]}
Rf6 {[%clk 00:54:32]} {[%emt 00:03:38]} 24. Re8+ {[%clk 01:01:12]} {[%emt
00:03:51]} Rxe8 {[%clk 00:54:52]} {[%emt 00:00:10]} 25. Nxe8 {[%clk 01:01:29]}
{[%emt 00:00:12]} Re6 {[%clk 00:54:54]} {[%emt 00:00:24]} 26. Nc7 {[%clk
01:00:42]} {[%emt 00:01:22]} Rc6 {[%clk 00:54:52]} {[%emt 00:00:32]} 27. Nd5
{[%clk 00:59:59]} {[%emt 00:01:13]} Bxb2 {[%clk 00:54:20]} {[%emt 00:01:02]} 28.
Ne3 {[%clk 00:59:15]} {[%emt 00:01:13]} Bd4 {[%clk 00:54:16]} {[%emt 00:00:33]}
29. Nd1 {[%clk 00:56:17]} {[%emt 00:03:30]} Rxc4 {[%clk 00:54:01]} {[%emt
00:00:45]} 30. c3 {[%clk 00:55:26]} {[%emt 00:01:21]} Bxc3 {[%clk 00:54:08]}
{[%emt 00:00:22]} 31. Nxc3 {[%clk 00:55:25]} {[%emt 00:00:32]} Rxc3 {[%clk
00:54:31]} {[%emt 00:00:07]} 32. Kg2 {[%clk 00:55:42]} {[%emt 00:00:13]} Ra3
{[%clk 00:54:38]} {[%emt 00:00:23]} 33. Kh3 {[%clk 00:55:49]} {[%emt 00:00:23]}
Rxa2 {[%clk 00:54:53]} {[%emt 00:00:15]} 34. f4 {[%clk 00:56:04]} {[%emt
00:00:15]} b5 {[%clk 00:54:36]} {[%emt 00:00:47]} 35. f5 {[%clk 00:55:54]}
{[%emt 00:00:40]} gxf5 {[%clk 00:54:52]} {[%emt 00:00:14]} 36. Kh4 {[%clk
00:54:48]} {[%emt 00:01:36]} h6 {[%clk 00:54:56]} {[%emt 00:00:26]} 37. h3
{[%clk 00:54:54]} {[%emt 00:00:24]} Rh2 {[%clk 00:54:12]} {[%emt 00:01:13]} 38.
g4 {[%clk 00:54:09]} {[%emt 00:01:15]} f4 {[%clk 00:54:22]} {[%emt 00:00:21]}
39. g5 {[%clk 00:54:05]} {[%emt 00:00:33]} hxg5+ {[%clk 00:54:38]} {[%emt
00:00:15]} 40. Kh5 {[%clk 00:53:09]} {[%emt 00:01:26]} Rxh3+ {[%clk 00:54:50]}
{[%emt 00:00:18]} 41. Kxg5 {[%clk 00:53:15]} {[%emt 00:00:24]} Kg7 {[%clk
00:55:07]} {[%emt 00:00:12]} 42. Kxf4 {[%clk 00:53:13]} {[%emt 00:00:33]} Kf6
{[%clk 00:55:24]} {[%emt 00:00:13]} 43. Kg4 {[%clk 00:53:13]} {[%emt 00:00:30]}
b4 {[%clk 00:55:36]} {[%emt 00:00:19]} 44. Kxh3 {[%clk 00:53:22]} {[%emt
00:00:20]} b3 {[%clk 00:55:57]} {[%emt 00:00:09]} 45. Kg4 {[%clk 00:53:43]}
{[%emt 00:00:09]} b2 {[%clk 00:56:15]} {[%emt 00:00:13]} 46. Kf4 {[%clk
00:53:30]} {[%emt 00:00:42]} b1=Q {[%clk 00:56:29]} {[%emt 00:00:15]} 47. Ke3
{[%clk 00:53:42]} {[%emt 00:00:19]} Qb4 {[%clk 00:56:46]} {[%emt 00:00:12]} 48.
Kd3 {[%clk 00:53:52]} {[%emt 00:18:17]} Ke5 {[%clk 00:57:06]} {[%emt 00:00:11]}
49. Ke3 {[%clk 00:54:00]} {[%emt 00:00:22]} Qe4+ {[%clk 00:57:21]} {[%emt
00:00:15]} 50. Kf2 {[%clk 00:54:08]} {[%emt 00:00:22]} Qd3 {[%clk 00:57:39]}
{[%emt 00:00:11]} 51. Kg2 {[%clk 00:54:20]} {[%emt 00:00:19]} Kf4 {[%clk
00:58:00]} {[%emt 00:00:09]} 52. Kh2 {[%clk 00:54:26]} {[%emt 00:00:24]} Kg4
{[%clk 00:58:14]} {[%emt 00:00:17]} 53. Kg2 {[%clk 00:54:19]} {[%emt 00:00:36]}
Qd2+ {[%clk 00:58:37]} {[%emt 00:00:06]} 54. Kf1 {[%clk 00:54:39]} {[%emt
00:00:10]} Kg3 {[%clk 00:58:57]} {[%emt 00:00:09]} 55. Kg1 {[%clk 00:55:00]}
{[%emt 00:00:10]} Qg2# {[%clk 00:59:22]} {[%emt 00:00:05]} 0-1

[Event "NJSK 2022 Meisjes C"]
[Site "Almelo, Netherlands"]
[Date "2022.05.01"]
[Round "1.7"]
[White "Westerhof, Fleur"]
[Black "Koorevaar, Sarah-Joy"]
[Result "1-0"]
[TimeControl "90min/40moves + 30min + 30sec/move"]
[WhiteElo "1509"]
[BlackElo "849"]

1. e4 c5 2. Nf3 Nc6 3. d4 cxd4 4. Nxd4 e6 5. Nc3 a6 6. Be2 Qc7 7. O-O Bd6 8. h3
Nf6 9. Kh1 b5 10. Ndxb5 axb5 11. Nxb5 Qb8 12. Nxd6+ Ke7 13. Nxc8+ Rxc8 14. Bd3
Ra4 15. c3 Qa8 16. b3 Rxa2 17. Rxa2 Qxa2 18. Qc2 Qxc2 19. Bxc2 Nd4 20. cxd4
Rxc2 21. f3 Rc3 22. Ba3+ d6 23. e5 Ne8 24. exd6+ Nxd6 25. Rb1 Kd7 26. Bc5 Nb5
27. b4 Rd3 28. Ra1 Nxd4 29. Ra7+ Kc6 30. Rxf7 Nf5 31. Bf8 Ng3+ 32. Kg1 Ne2+ 33.
Kf2 Rd2 34. Ke3 Ra2 35. Rxg7 h5 36. Rg5 h4 37. Rg4 Ng3 38. Kf4 Rxg2 39. Rxh4
1-0

[Event "NJSK 2022 Meisjes C"]
[Site "Almelo, Netherlands"]
[Date "2022.05.01"]
[Round "1.8"]
[White "Verbunt, Lisa"]
[Black "Jonkman, Sophia"]
[Result "1-0"]
[TimeControl "90min/40moves + 30min + 30sec/move"]
[WhiteElo "807"]
[BlackElo "1417"]

1. e4 e6 2. d4 d5 3. e5 c5 4. c3 Nc6 5. Nf3 Nge7 6. Be2 Nf5 7. O-O Be7 8. Nbd2
cxd4 9. cxd4 Nfxd4 10. Nxd4 Nxd4 11. Nb3 Nxb3 12. Qxb3 O-O 13. Qg3 f6 14. Bh6
g6 15. Bxf8 Qxf8 16. Rac1 Bd8 17. Rc3 Qb4 18. Rfc1 Qxb2 19. Rxc8 Rxc8 20. Rxc8
Qb1+ 21. Bf1 Qb6 22. exf6 Kf7 23. Qb3 Qd6 24. Qxb7+ Kxf6 25. Qxh7 Bb6 26. Bd3
Qa3 27. Qxg6+ Ke7 28. Re8+ Kd6 29. Qxe6+ Kc5 30. Qe7+ 1-0

[Event "NJSK 2022 Meisjes C"]
[Site "Almelo, Netherlands"]
[Date "2022.05.01"]
[Round "1.9"]
[White "Fu, Janice"]
[Black "Hagen, Carlijn"]
[Result "1-0"]
[TimeControl "90min/40moves + 30min + 30sec/move"]
[WhiteElo "1344"]
[BlackElo "783"]

1. e4 e5 2. Nf3 Nc6 3. Bc4 Nf6 4. d3 Bc5 5. Nc3 d6 6. h3 h6 7. Bd2 a6 8. a3 Bd7
9. O-O O-O 10. Re1 Qe7 11. b4 Ba7 12. Rb1 b5 13. Nd5 Nxd5 14. Bxd5 Rab8 15. Be3
Nd4 16. c3 Nxf3+ 17. Qxf3 Bxe3 18. Qxe3 c6 19. Bb3 Rbc8 20. d4 exd4 21. cxd4
Qf6 22. Rbd1 Rce8 23. e5 Qe7 24. Qg3 d5 25. Bc2 Qd8 26. f4 f6 27. Qd3 f5 28.
Qc3 Re6 29. Re3 Rg6 30. Rg3 Rxg3 31. Qxg3 a5 32. Re1 Be6 33. Qc3 axb4 34. Qxb4
Qb6 35. Rd1 Ra8 36. Qd6 Kf7 37. Kh1 Rd8 38. Qb4 Qa6 39. a4 bxa4 40. Qxa4 Ra8 41.
Qb4 Qe2 42. Qb7+ Kg6 43. Qxa8 Qxc2 44. Rf1 Qe2 45. Qe8+ Kh7 46. Rc1 Bg8 47.
Qxc6 Qf2 48. e6 Qxf4 49. e7 Bf7 50. Re1 Be8 51. Qxe8 Qd2 52. Rb1 Qc2 53. Qb8 f4
54. e8=Q Qd3 55. Qg8+ Kg6 56. Qd6+ Kh5 57. Qf7+ Kh4 58. Qdxf4# 1-0